bitfinex-derivatives/quotes_BTCF0:USTF0_20260119
["timestamp","ask_amount","ask_price","bid_price","bid_amount"]
[1768786830175,0.11872498,92694.0,92671.0,0.09303344]
[1768786830383,0.00016187,92694.0,92683.0,0.010794]
[1768786831184,0.00016187,92694.0,92673.0,0.09303344]
[1768786831380,0.00016187,92694.0,92685.0,0.010794]
[1768786831679,8.7e-07,92694.0,92690.0,0.010793]
[1768786831880,0.09716,92702.0,92690.0,0.010793]
[1768786832487,0.09716,92702.0,92684.0,0.09303344]
[1768786832990,0.09716,92702.0,92690.0,0.010793]
[1768786834385,0.02416499,92701.0,92690.0,0.010793]
[1768786834582,0.02416499,92700.0,92690.0,0.010793]
[1768786834781,0.02416499,92699.0,92687.0,0.010793]
[1768786834981,0.02416499,92698.0,92687.0,0.010793]
[1768786835187,0.1427281,92697.0,92676.0,0.09303344]
[1768786835387,0.02416499,92696.0,92682.0,0.010794]
[1768786835591,0.02416499,92695.0,92679.0,0.010794]
[1768786835781,0.02416499,92695.0,92676.0,0.09303344]
[1768786835977,0.02416499,92694.0,92676.0,0.2080253]
[1768786836183,0.02416499,92693.0,92689.0,0.010793]
[1768786836383,9.9e-07,92692.0,92689.0,0.010793]
[1768786836587,0.11856311,92702.0,92677.0,0.09303344]
[1768786836782,0.11856311,92702.0,92691.0,0.010793]
[1768786836988,0.11856311,92702.0,92689.0,0.010793]
[1768786837287,0.21572311,92705.0,92695.0,0.010792]
[1768786838090,0.11728683,92704.0,92695.0,0.010792]
[1768786838690,0.11728683,92704.0,92691.0,0.00016187]
[1768786838891,0.11728683,92704.0,92694.0,0.010792]
[1768786840097,0.11728683,92704.0,92692.0,0.010793]
[1768786840481,0.22758446,92699.0,92684.0,0.010794]
[1768786840690,0.11728683,92697.0,92682.0,0.010794]
[1768786840886,0.11728683,92697.0,92681.0,0.09716]
[1768786841097,0.11728683,92697.0,92683.0,0.010794]
[1768786841993,0.11728683,92697.0,92685.0,0.010794]
[1768786843585,0.11728683,92697.0,92682.0,0.00016187]
[1768786843792,0.11728683,92697.0,92687.0,0.010793]
[1768786844386,0.11728683,92704.0,92683.0,0.20274656]
[1768786844588,0.07650668,92719.0,92682.0,0.00016187]
[1768786844589,0.09716,92723.0,92699.0,0.20274656]
[1768786844897,0.09716,92723.0,92705.0,0.010791]
[1768786845194,0.010789,92722.0,92702.0,0.11264452]
[1768786845496,0.09716,92723.0,92704.0,0.010791]
[1768786845791,0.00016187,92721.0,92704.0,0.010791]
[1768786846890,0.00016187,92721.0,92708.0,0.010791]
[1768786847099,0.00016187,92721.0,92710.0,0.010791]
[1768786847292,0.00016187,92721.0,92707.0,0.010791]
[1768786847487,0.00016187,92721.0,92709.0,0.010791]
[1768786847992,0.00016187,92721.0,92709.0,0.02564798]
[1768786848186,0.00016187,92721.0,92703.0,0.09026391]
[1768786848381,0.02256293,92720.0,92703.0,0.09026391]
[1768786848586,0.02256293,92719.0,92704.0,0.010791]
[1768786848783,0.02256293,92718.0,92704.0,0.010791]
[1768786848988,0.02256293,92717.0,92704.0,0.010791]
[1768786849196,0.02256293,92716.0,92703.0,0.01492576]
[1768786849393,0.02256293,92715.0,92708.0,0.010791]
[1768786849593,0.02256293,92714.0,92708.0,0.010791]
[1768786849790,9.3e-07,92713.0,92708.0,0.010791]
[1768786849992,0.00016187,92721.0,92708.0,0.010791]
[1768786851188,0.00016187,92721.0,92707.0,0.010791]
[1768786852783,0.00016187,92721.0,92703.0,0.01492576]
[1768786853795,0.00016187,92721.0,92706.0,0.010791]
[1768786855091,0.00016187,92721.0,92703.0,0.01492576]
[1768786855592,0.00016187,92721.0,92706.0,0.010791]
[1768786855794,0.00016187,92721.0,92707.0,0.010791]
[1768786855994,0.00016187,92721.0,92703.0,0.01492576]
[1768786855995,0.00016187,92721.0,92703.0,0.01071676]
[1768786856293,0.20656964,92711.0,92688.0,0.1194083]
[1768786856497,0.20656964,92706.0,92689.0,0.010793]
[1768786856800,0.21736064,92706.0,92688.0,0.02538549]
[1768786858099,0.21736064,92706.0,92686.0,0.09712]
[1768786858600,0.010791,92704.0,92686.0,0.12245387]
[1768786858800,0.010791,92704.0,92680.0,0.09112548]
[1768786858801,0.20656964,92703.0,92680.0,0.09112548]
[1768786859005,0.09712,92713.0,92680.0,0.09112548]
[1768786859006,0.20656964,92702.0,92681.0,0.09712]
[1768786859504,0.00016187,92701.0,92688.0,0.010793]
[1768786859797,0.00016187,92701.0,92684.0,0.02551811]
[1768786859994,0.01095387,92701.0,92686.0,0.010793]
[1768786860196,0.00016187,92701.0,92688.0,0.010793]
[1768786860698,0.00016187,92701.0,92686.0,0.010793]
[1768786861087,0.00016187,92701.0,92684.0,0.01472411]
[1768786861291,0.010792,92700.0,92684.0,0.010794]
[1768786861501,0.00016187,92701.0,92686.0,0.010793]
[1768786861894,0.20673151,92701.0,92686.0,0.010793]
[1768786862206,0.12626171,92700.0,92679.0,0.09712]
[1768786862394,0.00016187,92701.0,92693.0,0.1302013]
[1768786862703,0.09712,92709.0,92697.0,0.010792]
[1768786863003,0.09712,92709.0,92699.0,0.14531775]
[1768786863613,0.09712,92713.0,92699.0,0.14531775]
[1768786864501,0.09712,92723.0,92707.0,0.1194083]
[1768786864702,0.09712,92723.0,92710.0,0.14531775]
[1768786864901,0.00237263,92724.0,92707.0,0.1194083]
[1768786865096,0.00237263,92724.0,92706.0,0.06477584]
[1768786865806,0.00237263,92724.0,92709.0,0.010791]
[1768786866403,0.07887931,92724.0,92709.0,0.010791]
[1768786867198,0.07887931,92724.0,92706.0,0.06477584]
[1768786867199,0.00237263,92724.0,92706.0,0.06477584]
[1768786867398,0.00237263,92724.0,92707.0,0.21053378]
[1768786867707,0.00237263,92724.0,92708.0,0.21053378]
[1768786868095,0.00237263,92724.0,92709.0,0.1194083]
[1768786868301,0.010788,92732.0,92713.0,0.21053378]
[1768786868302,0.09712,92731.0,92713.0,0.21053378]
[1768786868903,0.09712,92731.0,92722.0,0.010789]
[1768786869103,0.107907,92738.0,92720.0,0.21053378]
[1768786869310,0.010787,92738.0,92720.0,0.09112548]
[1768786869604,0.20656964,92735.0,92714.0,0.09112548]
[1768786869797,0.010788,92731.0,92713.0,0.09712]
[1768786870000,0.010788,92731.0,92715.0,0.01079]
[1768786870405,0.010787,92738.0,92719.0,0.1194083]
[1768786870604,0.010787,92738.0,92721.0,0.010789]
[1768786871609,0.09712,92740.0,92720.0,0.21053378]
[1768786872105,0.107907,92740.0,92724.0,0.010789]
[1768786872406,0.21258971,92740.0,92720.0,0.09112548]
[1768786872612,0.21258971,92740.0,92720.0,0.010789]
[1768786872613,0.010787,92738.0,92720.0,0.010789]
[1768786872907,0.010787,92738.0,92722.0,0.010789]
[1768786873112,0.11546971,92739.0,92722.0,0.010789]
[1768786873911,0.12625671,92739.0,92722.0,0.010789]
[1768786874299,0.12625671,92739.0,92716.0,0.1194083]
[1768786874300,0.18821993,92740.0,92724.0,0.010789]
[1768786874504,0.19900693,92740.0,92724.0,0.010789]
[1768786874708,0.19900693,92740.0,92721.0,0.010789]
[1768786874908,0.19900693,92740.0,92723.0,0.010789]
[1768786875206,0.09712,92740.0,92725.0,0.010789]
[1768786875411,0.09712,92740.0,92723.0,0.1194083]
[1768786876114,0.010788,92737.0,92719.0,0.10191548]
[1768786876415,0.22337671,92740.0,92721.0,0.010789]
[1768786876604,0.010788,92738.0,92721.0,0.010789]
[1768786876803,0.010787,92739.0,92721.0,0.010789]
[1768786877012,0.21258971,92740.0,92723.0,0.010789]
[1768786878406,0.09712,92740.0,92722.0,0.1194083]
[1768786879210,0.09712,92740.0,92723.0,0.010789]
[1768786879712,0.09712,92740.0,92727.0,0.010789]
[1768786880114,0.010787,92745.0,92727.0,0.010789]
[1768786880305,1.50698971,92747.0,92727.0,0.010789]
[1768786880506,0.11546971,92742.0,92728.0,0.010789]
[1768786880712,0.11546971,92742.0,92729.0,0.010788]
[1768786882213,0.010787,92740.0,92723.0,0.010789]
[1768786882413,0.010788,92735.0,92719.0,0.13004495]
[1768786882617,0.11987221,92738.0,92718.0,0.09320866]
[1768786882819,0.010788,92734.0,92718.0,0.10399866]
[1768786883017,0.11987221,92737.0,92718.0,0.10399866]
[1768786883718,0.010787,92744.0,92715.0,0.09712]
[1768786883719,0.09053255,92732.0,92715.0,0.09712]
[1768786883923,0.10132055,92730.0,92715.0,0.10791]
[1768786884224,0.22119276,92730.0,92715.0,0.10791]
[1768786884925,0.21040476,92730.0,92717.0,0.01079]
[1768786885120,0.010788,92733.0,92719.0,0.13004495]
[1768786885322,0.010788,92733.0,92719.0,0.01079]
[1768786885619,0.010788,92734.0,92719.0,0.01079]
[1768786885816,0.13066021,92734.0,92719.0,0.01079]
[1768786886022,0.11987221,92734.0,92716.0,0.01079]
[1768786886216,0.13066021,92732.0,92716.0,0.01079]
[1768786886415,0.13066021,92732.0,92714.0,0.00016177]
[1768786886416,0.010789,92728.0,92714.0,0.00016177]
[1768786886615,0.010789,92726.0,92714.0,0.00016177]
[1768786886812,0.21040476,92729.0,92714.0,0.00016177]
[1768786887117,0.22119376,92724.0,92708.0,0.09712]
[1768786887519,0.09053255,92719.0,92704.0,0.00237314]
[1768786887715,0.09053255,92717.0,92704.0,0.00237314]
[1768786887920,0.21040476,92716.0,92704.0,0.00237314]
[1768786888218,0.01079,92720.0,92704.0,0.00237314]
[1768786888420,0.01079,92718.0,92704.0,0.00237314]
[1768786888723,0.22119476,92718.0,92704.0,0.00237314]
[1768786889311,0.01079,92716.0,92704.0,0.00237314]
[1768786889516,0.11987221,92705.0,92691.0,0.09712]
[1768786889810,0.010791,92704.0,92689.0,0.02909815]
[1768786890022,0.010791,92704.0,92688.0,0.03989115]
[1768786890023,0.11987221,92703.0,92688.0,0.03989115]
[1768786890215,0.11987221,92703.0,92688.0,0.010793]
[1768786890418,0.11987221,92697.0,92686.0,0.02909815]
[1768786890616,0.21040476,92697.0,92683.0,0.0441139]
[1768786890824,0.21040476,92697.0,92683.0,0.01501575]
[1768786891024,0.21040476,92696.0,92683.0,0.010794]
[1768786891319,0.010792,92702.0,92684.0,0.010794]
[1768786891821,0.09053255,92704.0,92684.0,0.010794]
[1768786892025,0.00016177,92706.0,92685.0,0.21246361]
[1768786892230,0.00016177,92706.0,92691.0,0.010793]
[1768786893028,0.00016177,92706.0,92693.0,0.010793]
[1768786893228,0.00016177,92706.0,92688.0,0.09320866]
[1768786893526,0.00016177,92706.0,92695.0,0.010792]
[1768786894627,0.00016177,92706.0,92692.0,0.22325661]
[1768786894819,0.00016177,92706.0,92694.0,0.010792]
[1768786895026,0.00016177,92706.0,92698.0,0.010792]
[1768786895724,0.09712,92723.0,92706.0,0.010791]
[1768786895919,0.09712,92723.0,92708.0,0.010791]
[1768786896320,0.010789,92723.0,92703.0,0.22325461]
[1768786896526,0.010789,92721.0,92703.0,0.21246361]
[1768786896722,0.09712,92725.0,92703.0,0.21246361]
[1768786896723,0.01079,92719.0,92703.0,0.21246361]
[1768786896926,0.01079,92719.0,92704.0,0.00016177]
[1768786897429,0.21040476,92720.0,92704.0,0.00016177]
[1768786897728,0.01079,92715.0,92704.0,0.00016177]
[1768786898232,0.01079,92718.0,92704.0,0.00016177]
[1768786899325,0.21040476,92720.0,92704.0,0.00016177]
[1768786899525,0.09712,92725.0,92707.0,0.010791]
[1768786899526,0.010789,92724.0,92707.0,0.010791]
[1768786900335,0.010789,92722.0,92706.0,0.010791]
[1768786901330,0.00016177,92723.0,92708.0,0.010791]
[1768786901630,0.010789,92722.0,92705.0,0.010791]
[1768786902134,0.01079,92720.0,92704.0,0.00016177]
[1768786902330,0.01079,92715.0,92704.0,0.00016177]
[1768786902532,0.21673402,92715.0,92704.0,0.00016177]
[1768786902738,0.21673402,92715.0,92691.0,0.03879224]
[1768786902739,0.09355867,92703.0,92691.0,0.03879224]
[1768786903034,0.09355867,92703.0,92688.0,0.010793]
[1768786903035,0.10435067,92703.0,92688.0,0.010793]
[1768786903226,0.09355867,92703.0,92688.0,0.010793]
[1768786903425,0.09355867,92703.0,92686.0,0.03879224]
[1768786903923,0.09355867,92703.0,92687.0,0.010793]
[1768786904729,0.09355867,92703.0,92689.0,0.010793]
[1768786905624,0.09355867,92703.0,92686.0,0.03879224]
[1768786905831,0.09355867,92703.0,92687.0,0.010793]
[1768786906236,0.010792,92702.0,92685.0,0.03879224]
[1768786906533,0.09355867,92703.0,92686.0,0.010793]
[1768786906738,0.010792,92700.0,92685.0,0.03879224]
[1768786907733,0.010793,92692.0,92683.0,0.03879224]
[1768786908048,0.010793,92692.0,92674.0,0.2109558]
[1768786908049,0.010793,92692.0,92679.0,0.03879224]
[1768786908338,0.010793,92692.0,92669.0,0.11961388]
[1768786908339,0.010793,92688.0,92678.0,0.03879224]
[1768786908531,0.010793,92688.0,92677.0,0.03879224]
[1768786909027,0.10435267,92686.0,92670.0,0.05824297]
[1768786909227,0.10435267,92686.0,92667.0,0.010796]
[1768786909228,0.20594402,92684.0,92669.0,9.7e-07]
[1768786909435,0.09355867,92674.0,92657.0,0.02621849]
[1768786909627,0.20594402,92674.0,92657.0,0.01542149]
[1768786909829,0.010795,92671.0,92652.0,0.07766682]
[1768786910026,0.010795,92671.0,92651.0,0.07766682]
[1768786910334,9.366e-05,92670.0,92652.0,0.010797]
[1768786910535,0.01088866,92670.0,92649.0,0.07766682]
[1768786910724,0.20594402,92669.0,92649.0,0.07766682]
[1768786910927,0.20594402,92664.0,92647.0,0.01568027]
[1768786911138,0.010797,92659.0,92646.0,0.07766682]
[1768786911439,0.010797,92659.0,92638.0,0.107919]
[1768786911440,0.20594402,92659.0,92642.0,0.07766682]
[1768786911631,0.20594402,92658.0,92642.0,0.07766682]
[1768786911824,0.09355867,92657.0,92641.0,0.07766682]
[1768786912024,0.09355867,92657.0,92640.0,0.07766682]
[1768786912426,0.09355867,92657.0,92638.0,0.10454203]
[1768786912629,0.09355867,92657.0,92641.0,0.010799]
[1768786913844,0.09712,92663.0,92647.0,0.010798]
[1768786914142,0.09716,92662.0,92648.0,0.11947922]
[1768786914337,0.09716,92661.0,92644.0,0.01317268]
[1768786914743,0.09716,92661.0,92647.0,0.010798]
[1768786915133,0.09294812,92669.0,92647.0,0.010798]
[1768786915334,0.09716,92668.0,92647.0,0.010798]
[1768786916635,0.010796,92666.0,92647.0,0.010798]
[1768786916840,0.010796,92663.0,92644.0,0.00237468]
[1768786917838,0.11649262,92666.0,92645.0,0.010798]
[1768786918138,9.366e-05,92670.0,92646.0,0.21362622]
[1768786918338,0.09716,92669.0,92650.0,0.010798]
[1768786918736,0.09716,92669.0,92646.0,0.21362622]
[1768786919041,0.09716,92669.0,92647.0,0.13027722]
[1768786919239,0.010796,92666.0,92646.0,0.094147]
[1768786919445,0.22023674,92666.0,92644.0,0.00237468]
[1768786919740,0.10374412,92663.0,92644.0,0.00237468]
[1768786919933,0.010796,92661.0,92644.0,0.00237468]
[1768786920446,0.09716,92662.0,92644.0,0.00237468]
[1768786920742,0.09716,92662.0,92644.0,0.01317268]
[1768786920944,0.010796,92661.0,92644.0,0.00237468]
[1768786921945,0.09716,92662.0,92645.0,0.010798]
[1768786922546,9.366e-05,92670.0,92647.0,0.21362622]
[1768786922754,0.09716,92669.0,92647.0,0.21362622]
[1768786923040,0.20944074,92668.0,92644.0,0.00237468]
[1768786923248,0.20944074,92666.0,92644.0,0.00237468]
[1768786923432,0.09294812,92665.0,92644.0,0.00237468]
[1768786924034,0.20944074,92665.0,92644.0,0.00237468]
[1768786924445,0.010796,92663.0,92644.0,0.00237468]
[1768786924836,0.010796,92663.0,92645.0,0.010798]
[1768786926642,0.09716,92667.0,92646.0,0.11947922]
[1768786926944,0.09716,92667.0,92653.0,0.010797]
[1768786927145,9.366e-05,92670.0,92648.0,0.11947922]
[1768786927340,0.09725366,92670.0,92654.0,0.11947922]
[1768786928335,9.366e-05,92670.0,92656.0,0.11947922]
[1768786928532,9.366e-05,92670.0,92656.0,0.094147]
[1768786928738,9.366e-05,92670.0,92652.0,0.010797]
[1768786928944,9.366e-05,92670.0,92658.0,0.010797]
[1768786930346,9.366e-05,92670.0,92660.0,0.010796]
[1768786930540,9.366e-05,92670.0,92662.0,0.010796]
[1768786931243,9.366e-05,92670.0,92659.0,0.010797]
[1768786931844,9.366e-05,92670.0,92662.0,0.010796]
[1768786932042,0.09294812,92679.0,92655.0,0.00016186]
[1768786932043,0.010794,92684.0,92664.0,0.11947922]
[1768786932350,0.0327321,92683.0,92666.0,0.22442222]
[1768786932555,0.0219381,92682.0,92666.0,0.22442222]
[1768786932940,0.0219381,92682.0,92668.0,0.010796]
[1768786933137,0.0219381,92681.0,92666.0,0.21362622]
[1768786933345,0.010794,92683.0,92666.0,0.21362622]
[1768786933346,0.0219381,92680.0,92666.0,0.21362622]
[1768786933548,0.0219381,92679.0,92666.0,0.21362622]
[1768786933749,0.0219381,92678.0,92666.0,0.21362622]
[1768786934053,0.23137884,92677.0,92655.0,0.00016186]
[1768786934247,0.010795,92671.0,92655.0,0.00016186]
[1768786934452,0.20944074,92672.0,92655.0,0.00016186]
[1768786934652,0.010796,92667.0,92655.0,0.00016186]
[1768786935148,0.11649262,92669.0,92655.0,0.00016186]
[1768786935351,0.010796,92665.0,92655.0,0.00016186]
[1768786935857,0.11649262,92667.0,92655.0,0.00016186]
[1768786936057,0.09716,92674.0,92655.0,0.01095886]
[1768786936259,0.02195515,92673.0,92655.0,0.01095886]
[1768786936459,0.02195515,92672.0,92655.0,0.01095886]
[1768786936661,0.02195515,92671.0,92657.0,0.010797]
[1768786936958,0.010795,92671.0,92655.0,0.00016186]
[1768786937156,0.010795,92669.0,92655.0,0.00016186]
[1768786937456,0.09716,92674.0,92655.0,0.00016186]
[1768786937457,0.02196783,92668.0,92655.0,0.00016186]
[1768786937650,0.20944074,92671.0,92655.0,0.00016186]
[1768786937849,0.09294812,92669.0,92655.0,0.00016186]
[1768786938050,0.010796,92665.0,92655.0,0.00016186]
[1768786939349,0.09294812,92669.0,92655.0,0.00016186]
[1768786939549,0.02198058,92668.0,92655.0,0.00016186]
[1768786939750,0.02198058,92667.0,92655.0,0.00016186]
[1768786939949,0.09294812,92669.0,92655.0,0.00016186]
[1768786940150,0.0219774,92668.0,92655.0,0.01095886]
[1768786940355,0.09294812,92669.0,92655.0,0.01095886]
[1768786940546,0.02197995,92668.0,92657.0,0.010797]
[1768786940857,0.09716,92674.0,92657.0,0.010797]
[1768786940858,0.09716,92674.0,92662.0,0.010796]
[1768786941061,0.02197872,92673.0,92662.0,0.010796]
[1768786941252,0.02197872,92672.0,92662.0,0.010796]
[1768786941453,0.02197872,92671.0,92662.0,0.010796]
[1768786941661,0.02197872,92670.0,92662.0,0.010796]
[1768786941855,0.02197872,92669.0,92657.0,0.21362622]
[1768786942054,0.10811686,92675.0,92657.0,0.22442322]
[1768786942355,0.02197806,92674.0,92659.0,0.010797]
[1768786942555,0.02197806,92673.0,92659.0,0.010797]
[1768786942861,0.02197806,92672.0,92659.0,0.010797]
[1768786943056,0.02197806,92671.0,92659.0,0.010797]
[1768786943256,0.02197806,92670.0,92659.0,0.010797]
[1768786943451,0.02197806,92669.0,92660.0,0.21705679]
[1768786943757,0.00016186,92675.0,92661.0,0.20626079]
[1768786944158,0.00016186,92675.0,92661.0,0.1089707]
[1768786944359,0.00016186,92675.0,92661.0,0.010796]
[1768786944559,0.01095686,92675.0,92656.0,0.10808609]
[1768786945464,0.01095686,92675.0,92659.0,0.010797]
[1768786945659,0.00016186,92675.0,92661.0,0.010796]
[1768786945854,0.00016186,92675.0,92656.0,0.10808609]
[1768786946053,0.22283322,92670.0,92655.0,0.00016186]
[1768786946360,0.010796,92668.0,92655.0,0.00016186]
[1768786946557,0.09864793,92669.0,92655.0,0.00016186]
[1768786946762,0.00016186,92675.0,92645.0,0.0981747]
[1768786946763,0.09864793,92662.0,92645.0,0.09716]
[1768786947057,0.010797,92658.0,92645.0,0.09716]
[1768786947251,0.010797,92659.0,92645.0,0.09716]
[1768786947453,0.09864793,92662.0,92647.0,0.010798]
[1768786947762,0.10944393,92662.0,92645.0,0.09716]
[1768786947964,0.010797,92660.0,92645.0,0.09716]
[1768786948167,0.09864793,92662.0,92648.0,0.010798]
[1768786948168,0.21203822,92662.0,92648.0,0.010798]
[1768786948465,0.010796,92666.0,92645.0,0.09716]
[1768786949455,0.010796,92664.0,92645.0,0.09716]
[1768786949657,0.22283422,92667.0,92648.0,0.010798]
[1768786949852,0.010795,92670.0,92648.0,0.20626079]
[1768786950052,0.09716,92669.0,92654.0,0.010797]
[1768786951356,0.09716,92669.0,92651.0,0.010798]
[1768786952566,0.010796,92668.0,92651.0,0.010798]
[1768786952956,0.09716,92669.0,92649.0,0.10808609]
[1768786953466,0.09716,92669.0,92655.0,0.010797]
[1768786953971,0.09716,92669.0,92657.0,0.010797]
[1768786954164,0.09716,92670.0,92657.0,0.010797]
[1768786954364,0.09716,92670.0,92654.0,0.10808609]
[1768786954761,0.00016186,92675.0,92659.0,0.1089717]
[1768786954965,0.09864793,92672.0,92654.0,0.010797]
[1768786955273,0.010795,92671.0,92654.0,0.010797]
[1768786955465,0.09864793,92664.0,92648.0,0.010798]
[1768786955672,0.09864793,92664.0,92650.0,0.010798]
[1768786955969,0.09716,92674.0,92646.0,0.010798]
[1768786955970,0.09864793,92661.0,92646.0,0.010798]
[1768786956170,0.09864793,92660.0,92648.0,0.010798]
[1768786956371,0.010796,92664.0,92648.0,0.010798]
[1768786956673,0.21203822,92666.0,92650.0,0.010798]
[1768786957081,0.21203822,92665.0,92647.0,0.010798]
[1768786957379,0.21203822,92665.0,92649.0,0.010798]
[1768786957767,0.21203822,92665.0,92651.0,0.010798]
[1768786958270,0.09864793,92665.0,92651.0,0.010798]
[1768786958577,0.09716,92669.0,92653.0,0.12631195]
[1768786958769,0.09716,92669.0,92655.0,0.010797]
[1768786959469,0.09716,92669.0,92657.0,0.010797]
[1768786959773,0.00016186,92675.0,92654.0,0.09746863]
[1768786959975,0.09732186,92675.0,92656.0,0.09746863]
[1768786960174,0.09732186,92675.0,92657.0,0.11551495]
[1768786960472,0.09188358,92669.0,92645.0,0.21267495]
[1768786960673,0.09188358,92674.0,92656.0,0.010797]
[1768786960871,0.10267858,92674.0,92653.0,0.09746863]
[1768786962071,0.2157127,92645.0,92644.0,6.8e-07]
[1768786962271,0.09188358,92642.0,92624.0,0.04123906]
[1768786962474,0.09188358,92642.0,92624.0,0.00237519]
[1768786962475,0.2049147,92642.0,92624.0,0.00237519]
[1768786962670,0.010799,92636.0,92624.0,0.00237519]
[1768786963178,0.09188358,92614.0,92589.0,0.08010385]
[1768786963475,0.010802,92613.0,92593.0,0.010804]
[1768786963776,0.09188358,92614.0,92589.0,0.00237611]
[1768786963968,0.00016195,92612.0,92589.0,0.00237611]
[1768786964167,0.000118,92611.0,92600.0,0.01076919]
[1768786964670,0.09200158,92611.0,92598.0,0.01508256]
[1768786964870,0.10268658,92608.0,92589.0,0.00237611]
[1768786965070,0.09188358,92607.0,92589.0,0.00237611]
[1768786965978,0.09188358,92605.0,92589.0,0.00237611]
[1768786966172,0.2049147,92605.0,92589.0,0.00237611]
[1768786966361,0.2049147,92603.0,92589.0,0.00237611]
[1768786966566,0.2049147,92602.0,92584.0,0.00237622]
[1768786966760,0.09188358,92599.0,92584.0,0.00237622]
[1768786967062,0.09188358,92599.0,92585.0,0.010805]
[1768786967264,0.09188358,92599.0,92584.0,0.01770622]
[1768786967663,0.09188358,92599.0,92578.0,0.07260622]
[1768786967867,0.09188358,92599.0,92584.0,0.010805]
[1768786968574,0.09188358,92599.0,92578.0,0.08773539]
[1768786968761,0.09188358,92599.0,92583.0,0.010805]
[1768786969765,0.09188358,92599.0,92578.0,0.08773539]
[1768786970578,0.09188358,92599.0,92579.0,0.00016195]
[1768786970877,0.09188358,92604.0,92585.0,0.010805]
[1768786971074,0.2049147,92604.0,92585.0,0.010805]
[1768786971264,0.2049147,92600.0,92580.0,0.010806]
[1768786971468,0.0972,92607.0,92579.0,0.01096795]
[1768786971469,0.2049147,92596.0,92579.0,0.01096795]
[1768786971772,0.09188358,92595.0,92579.0,0.01096795]
[1768786971972,0.09197271,92594.0,92579.0,0.01096795]
[1768786972280,0.09188358,92593.0,92579.0,0.00016195]
[1768786972575,0.09438152,92592.0,92579.0,0.00016195]
[1768786973165,0.20342264,92592.0,92579.0,0.00016195]
[1768786973378,0.09438152,92588.0,92575.0,0.010806]
[1768786975582,0.09438152,92588.0,92572.0,0.01525829]
[1768786975880,0.09438152,92588.0,92577.0,0.010806]
[1768786976472,9.5e-07,92591.0,92575.0,0.21754364]
[1768786976673,9.5e-07,92591.0,92576.0,0.21754364]
[1768786977083,0.09724,92598.0,92585.0,0.010805]
[1768786977379,0.09724,92598.0,92587.0,0.010805]
[1768786977881,0.09724,92598.0,92589.0,0.010805]
[1768786978079,0.09438152,92608.0,92581.0,0.21754364]
[1768786978275,0.00016195,92603.0,92592.0,0.010804]
[1768786978475,0.09724,92607.0,92592.0,0.010804]
[1768786978879,0.010802,92614.0,92595.0,0.010804]
[1768786979082,0.09438152,92615.0,92592.0,0.11863767]
[1768786979283,0.09438152,92615.0,92599.0,0.010804]
[1768786979983,0.09438152,92615.0,92601.0,0.010803]
[1768786980187,0.09724,92617.0,92596.0,0.11863767]
[1768786980379,0.09724,92617.0,92599.0,0.010804]
[1768786980577,0.010801,92618.0,92599.0,0.010804]
[1768786980775,0.09438152,92620.0,92596.0,0.11863767]
[1768786980976,0.19162152,92620.0,92601.0,0.010803]
[1768786981184,0.21422364,92619.0,92598.0,0.010804]
[1768786981387,0.10518352,92615.0,92595.0,0.010804]
[1768786981583,0.09438152,92607.0,92583.0,0.09890597]
[1768786981785,0.09438152,92605.0,92584.0,0.09724]
[1768786981983,0.09438152,92605.0,92588.0,0.010805]
[1768786982385,0.09438152,92605.0,92590.0,0.010805]
[1768786982576,0.09438152,92605.0,92587.0,0.01096695]
[1768786982888,0.09438152,92603.0,92589.0,0.010805]
[1768786983187,0.09438152,92603.0,92587.0,0.00016195]
[1768786983377,0.09438152,92603.0,92588.0,0.010805]
[1768786983705,0.09438152,92603.0,92587.0,0.00016195]
[1768786983883,0.010804,92598.0,92587.0,0.00016195]
[1768786984084,0.10518452,92602.0,92587.0,0.00016195]
[1768786984582,0.09438152,92602.0,92587.0,0.00016195]
[1768786985387,0.10518452,92601.0,92587.0,0.00016195]
[1768786985780,0.09438152,92601.0,92587.0,0.00016195]
[1768786986474,0.09438152,92599.0,92587.0,0.00016195]
[1768786986671,0.10904112,92598.0,92584.0,0.00237622]
[1768786987489,0.00016195,92602.0,92593.0,0.010804]
[1768786988092,0.00016195,92602.0,92589.0,0.010805]
[1768786988588,0.00016195,92602.0,92584.0,0.21991986]
[1768786988784,0.00016195,92602.0,92595.0,0.010804]
[1768786988987,0.20275117,92605.0,92584.0,0.00237622]
[1768786989178,0.20275117,92601.0,92584.0,0.00237622]
[1768786989485,0.20275117,92600.0,92585.0,0.010805]
[1768786989678,0.20275117,92600.0,92579.0,0.07332122]
[1768786989878,0.20275117,92600.0,92584.0,0.010805]
[1768786991376,0.20275117,92600.0,92587.0,0.010805]
[1768786992479,0.20275117,92600.0,92583.0,0.00016195]
[1768786992480,0.20275117,92600.0,92589.0,0.010805]
[1768786992679,0.09438152,92600.0,92589.0,0.010805]
[1768786993374,0.09438152,92600.0,92585.0,0.010805]
[1768786993580,0.09438152,92600.0,92583.0,0.00016195]
[1768786993983,0.09438152,92600.0,92585.0,0.010805]
[1768786994786,0.10666252,92605.0,92585.0,0.010805]
[1768786994981,0.10666252,92605.0,92590.0,0.010805]
[1768786995792,0.10629559,92608.0,92592.0,0.010804]
[1768786996089,0.09675711,92609.0,92583.0,0.00016195]
[1768786996090,0.02423727,92607.0,92594.0,0.010804]
[1768786996392,0.02423727,92606.0,92594.0,0.010804]
[1768786996589,0.09675711,92609.0,92594.0,0.010804]
[1768786996789,0.02423844,92608.0,92594.0,0.010804]
[1768786997085,0.02423844,92607.0,92589.0,0.09890597]
[1768786997291,0.00237559,92609.0,92597.0,0.010804]
[1768786997480,0.02423924,92608.0,92597.0,0.010804]
[1768786997679,0.02423924,92607.0,92597.0,0.010804]
[1768786997976,0.02423924,92607.0,92590.0,0.18180689]
[1768786997977,0.00237559,92609.0,92594.0,0.11863767]
[1768786998175,0.20272791,92629.0,92606.0,0.010803]
[1768786998373,0.20272791,92629.0,92608.0,0.010802]
[1768786998374,0.13228056,92628.0,92608.0,0.010802]
[1768786998582,0.02424056,92627.0,92608.0,0.010802]
[1768786998787,0.02424056,92627.0,92605.0,0.010803]
[1768786998985,0.0108,92626.0,92605.0,0.010803]
[1768786999177,0.02424056,92625.0,92605.0,0.010803]
[1768786999780,0.21115383,92624.0,92602.0,0.010803]
[1768786999978,0.20035283,92614.0,92600.0,0.09724]
[1768787000186,0.02424056,92613.0,92600.0,0.09724]
[1768787000591,0.10536929,92612.0,92600.0,0.09724]
[1768787001493,0.00016195,92616.0,92600.0,0.09724]
[1768787001695,0.02424836,92615.0,92600.0,0.09724]